[Event "SRB-chT Men 1st League 2019"]
[Site "Subotica"]
[Date "2019.08.23"]
[Round "2.4"]
[White "Cabarkapa, Novak"]
[Black "Stojanovic, Mihajlo"]
[Result "1/2-1/2"]
[ECO "C11"]
[WhiteElo "2434"]
[BlackElo "2475"]
[Annotator "ChessBase"]
[PlyCount "68"]
[EventDate "2019.08.23"]
[EventType "team-tourn"]
[EventCountry "SRB"]
[SourceTitle "playchess.com"]
[Source "ChessBase"]
[SourceQuality "1"]
[TimeControl "40/5400+30:1800+30"]

1. e4 {[%emt 0:00:00]} e6 {[%emt 0:00:00]} 2. d4 {[%emt 0:00:13]} d5 {[%emt 0:00:00]} 3. Nc3 {[%emt 0:00:06]} Nf6 {[%emt 0:00:00]} 4. e5 {[%emt 0:00:06]} Nfd7 {[%emt 0:00:00]} 5. f4 {[%emt 0:00:06]} c5 {[%emt 0:00:04]} 6. Nf3 {[%emt 0:00:03]} Nc6 {[%emt 0:00:07]} 7. Be3 {[%emt 0:00:06]} a6 {[%emt 0:00:06]} 8. Qd2 {[%emt 0:03:12]} b5 {[%emt 0:00:12]} 9. h4 {[%emt 0:04:47]} Bb7 {[%emt 0:36:07]} 10. h5 {[%emt 0:08:33]} b4 {[%emt 0:10:26]} 11. Ne2 {[%emt 0:01:48]} Qc7 {[%emt 0:09:17]} 12. Ng3 {[%emt 0:10:07]} Be7 {[%emt 0:03:45]} 13. Be2 {[%emt 0:12:12]} Rc8 {[%emt 0:04:18]} 14. Kf2 {[%emt 0:10:48]} cxd4 {[%emt 0:01:37]} 15. Nxd4 {[%emt 0:00:15]} Nxd4 {[%emt 0:02:12]} 16. Bxd4 {[%emt 0:00:11]} Qxc2 {[%emt 0:03:07]} 17. Qxc2 {[%emt 0:01:29]} Rxc2 {[%emt 0:00:03]} 18. Rac1 {[%emt 0:01:35]} Rxc1 {[%emt 0:04:08]} 19. Rxc1 {[%emt 0:00:05]} Kd8 {[%emt 0:00:35]} 20. Bg4 {[%emt 0:06:14]} Re8 {[%emt 0:05:34]} 21. Ne2 {[%emt 0:03:43]} Bf8 {[%emt 0:06:40]} 22. Ba7 {[%emt 0:01:47]} f5 {[%emt 0:11:12]} 23. Bf3 {[%emt 0:07:36]} Ke7 {[%emt 0:00:02]} 24. Rc7 {[%emt 0:00:39]} Bc8 {[%emt 0:00:02]} 25. Nd4 {[%emt 0:01:37]} Kf7 {[%emt 0:00:09]} 26. Bd1 {[%emt 0:05:22]} Be7 {[%emt 0:02:13]} 27. Ba4 {[%emt 0:08:00]} Rd8 {[%emt 0:00:04]} 28. Nc6 {[%emt 0:02:59]} Rg8 {[%emt 0:00:44]} 29. Na5 {[%emt 0:05:36]} Bd8 {[%emt 0:00:56]} 30. Rxc8 {[%emt 0:00:36]} Bh4+ {[%emt 0:00:02]} 31. g3 {[%emt 0:01:51]} Rxc8 {[%emt 0:00:03]} 32. gxh4 {[%emt 0:00:36]} Nc5 {[%emt 0:00:43]} 33. Bxc5 {[%emt 0:01:08]} Rxc5 {[%emt 0:00:02]} 34. Nb7 {[%emt 0:00:49]} Rc1 {[%emt 0:01:22]} 1/2-1/2

[Event "SRB-chT Men 1st League 2019"]
[Site "Subotica"]
[Date "2019.08.23"]
[Round "2.5"]
[White "Vucinic, Gojko"]
[Black "Lukovic, Vladimir"]
[Result "0-1"]
[ECO "C18"]
[WhiteElo "2396"]
[BlackElo "2420"]
[Annotator "NA"]
[PlyCount "78"]
[EventDate "2019.08.23"]
[EventType "team-tourn"]
[EventCountry "SRB"]
[SourceTitle "playchess.com"]
[Source "ChessBase"]
[SourceQuality "1"]
[TimeControl "40/5400+30:1800+30"]

1. e4 {[%emt 1:30:30]} e6 {[%emt 1:30:30]} 2. d4 {[%emt 0:00:30]} d5 {[%emt 0:00:30]} 3. Nc3 {[%emt 0:00:30]} Bb4 {[%emt 0:00:30]} 4. e5 {[%emt 0:00:30]} c5 {[%emt 0:00:30]} 5. a3 {[%emt 0:00:30]} Bxc3+ {[%emt 0:00:30]} 6. bxc3 {[%emt 0:00:30]} Qa5 {[%emt 0:00:30]} 7. Bd2 {[%emt 0:00:30]} Qa4 {[%emt 0:00:30]} 8. Qb1 {[%emt 0:00:30]} c4 {[%emt 0:00:30]} 9. h4 {[%emt 0:00:30]} Nc6 {[%emt 0:00:30]} 10. h5 {[%emt 0:00:30]} h6 {[%emt 0:00:30]} 11. Nf3 {[%emt 0:00:30]} Nge7 {[%emt 0:00:30]} 12. g3 {[%emt 0:00:30]} Bd7 {[%emt 0:00:30]} 13. Bf4 {[%emt 0:00:30]} O-O-O {[%emt 0:00:30]} 14. Kd2 {[%emt 0:00:30]} Kb8 {[%emt 0:00:30]} 15. Bh3 {[%emt 0:00:30]} Nc8 {[%emt 0:00:30]} 16. Qe1 {[%emt 0:00:30]} Nb6 {[%emt 0:00:30]} 17. Qe3 {[%emt 0:00:30]} Qa5 {[%emt 0:00:30]} 18. g4 {[%emt 0:00:30]} Na4 {[%emt 0:00:30]} 19. g5 {[%emt 0:00:30]} hxg5 {[%emt 0:00:30]} 20. Bxg5 {[%emt 0:00:30]} Rdf8 {[%emt 0:00:30]} 21. Bf1 {[%emt 0:00:30]} f5 {[%emt 0:00:30]} 22. Rh4 {[%emt 0:00:30]} Be8 {[%emt 0:00:30]} 23. h6 {[%emt 0:00:30]} gxh6 {[%emt 0:00:30]} 24. Bf6 {[%emt 0:00:30]} Rhg8 {[%emt 0:00:30]} 25. Be2 {[%emt 0:00:30]} Bh5 {[%emt 0:00:30]} 26. Ng1 {[%emt 0:00:30]} Rxg1 {[%emt 0:00:30]} 27. Rxg1 {[%emt 0:00:30]} Bxe2 {[%emt 0:00:30]} 28. Kxe2 {[%emt 0:00:30]} Nxc3+ {[%emt 0:00:30]} 29. Kf3 {[%emt 0:00:30]} Qxa3 {[%emt 0:00:30]} 30. Rg7 {[%emt 0:00:30]} Qb2 {[%emt 0:00:30]} 31. Rxh6 {[%emt 0:00:30]} Qxc2 {[%emt 0:00:30]} 32. Rhh7 {[%emt 0:00:30]} b6 {[%emt 0:00:30]} 33. Qh6 {[%emt 0:00:30]} Rc8 {[%emt 0:00:30]} 34. Rb7+ {[%emt 0:00:30]} Ka8 {[%emt 0:00:30]} 35. Rbc7 {[%emt 0:00:30]} Rxc7 {[%emt 0:00:30]} 36. Rxc7 {[%emt 0:00:30]} Nxd4+ {[%emt 0:00:30]} 37. Kg2 {[%emt 0:00:30]} Qe4+ {[%emt 0:00:30]} 38. Kh2 {[%emt 0:00:30]} Nf3+ {[%emt 0:00:30]} 39. Kh1 {[%emt 0:00:30]} Nh4+ {[%emt 0:00:30]} 0-1

[Event "SRB-chT Men 1st League 2019"]
[Site "Subotica"]
[Date "2019.08.23"]
[Round "2.6"]
[White "Zegarac, Vuk"]
[Black "Damjanovic, Vuk"]
[Result "1-0"]
[ECO "D00"]
[WhiteElo "2310"]
[BlackElo "2246"]
[Annotator "NA"]
[PlyCount "86"]
[EventDate "2019.08.23"]
[EventType "team-tourn"]
[EventCountry "SRB"]
[SourceTitle "playchess.com"]
[Source "ChessBase"]
[SourceQuality "1"]
[TimeControl "40/5400+30:1800+30"]

1. d4 {[%emt 0:01:35]} d5 {[%emt 0:00:00]} 2. Bf4 {[%emt 0:00:13]} c5 {[%emt 0:00:23]} 3. e3 {[%emt 0:00:14]} Nc6 {[%emt 0:01:08]} 4. c3 {[%emt 0:00:12]} Nf6 {[%emt 0:01:14]} 5. Nd2 {[%emt 0:00:30]} cxd4 {[%emt 0:01:04]} 6. exd4 {[%emt 0:00:13]} Bf5 {[%emt 0:00:22]} 7. Ngf3 {[%emt 0:00:22]} e6 {[%emt 0:00:13]} 8. Qb3 {[%emt 0:00:13]} Qc8 {[%emt 0:00:09]} 9. Nh4 {[%emt 0:00:21]} Be4 {[%emt 0:00:11]} 10. Nxe4 {[%emt 0:00:50]} Nxe4 {[%emt 0:00:05]} 11. Bd3 {[%emt 0:01:25]} Bd6 {[%emt 0:00:40]} 12. Bxd6 {[%emt 0:00:34]} Nxd6 {[%emt 0:00:21]} 13. Nf3 {[%emt 0:00:06]} O-O {[%emt 0:05:02]} 14. O-O {[%emt 0:00:27]} b5 {[%emt 0:09:48]} 15. a4 {[%emt 0:06:14]} bxa4 {[%emt 0:08:53]} 16. Rxa4 {[%emt 0:01:53]} Qc7 {[%emt 0:11:26]} 17. Rfa1 {[%emt 0:03:57]} f5 {[%emt 0:12:46]} 18. Ra6 {[%emt 0:05:31]} Nb8 {[%emt 0:04:58]} 19. R6a3 {[%emt 0:07:31]} Nc6 {[%emt 0:00:50]} 20. Qd1 {[%emt 0:03:07]} Kh8 {[%emt 0:10:08]} 21. Qe2 {[%emt 0:02:05]} Ne4 {[%emt 0:02:04]} 22. Bb5 {[%emt 0:01:58]} Nd8 {[%emt 0:13:55]} 23. Ne5 {[%emt 0:01:46]} Nf7 {[%emt 0:00:01]} 24. Nd3 {[%emt 0:04:56]} Nfd6 {[%emt 0:01:44]} 25. Ba6 {[%emt 0:00:12]} Rfe8 {[%emt 0:01:36]} 26. f3 {[%emt 0:01:34]} Ng5 {[%emt 0:01:50]} 27. Nb4 {[%emt 0:07:29]} Ngf7 {[%emt 0:01:22]} 28. Bd3 {[%emt 0:04:49]} Qb7 {[%emt 0:03:46]} 29. Qf2 {[%emt 0:02:04]} e5 {[%emt 0:03:29]} 30. Ba6 {[%emt 0:02:00]} Qd7 {[%emt 0:03:29]} 31. Nxd5 {[%emt 0:02:20]} e4 {[%emt 0:00:11]} 32. f4 {[%emt 0:01:04]} Qc6 {[%emt 0:01:53]} 33. Ne3 {[%emt 0:00:21]} Qb6 {[%emt 0:00:43]} 34. Bf1 {[%emt 0:00:46]} a5 {[%emt 0:00:03]} 35. b4 {[%emt 0:01:34]} a4 {[%emt 0:00:38]} 36. Rxa4 {[%emt 0:03:14]} Rxa4 {[%emt 0:00:06]} 37. Rxa4 {[%emt 0:00:02]} Qc6 {[%emt 0:00:00]} 38. Ra3 {[%emt 0:00:31]} Rb8 {[%emt 0:00:25]} 39. Qa2 {[%emt 0:01:00]} g5 {[%emt 0:00:29]} 40. Qe6 {[%emt 0:00:00]} Qc8 {[%emt 0:00:00]} 41. Qf6+ {[%emt 0:01:21]} Kg8 {[%emt 0:01:55]} 42. fxg5 {[%emt 0:00:56]} f4 {[%emt 0:00:39]} 43. Qxf4 {[%emt 0:01:09]} Qe6 {[%emt 0:00:08]} 1-0

[Event "SRB-chT Men 1st League 2019"]
[Site "Subotica"]
[Date "2019.08.23"]
[Round "2.8"]
[White "Pap, Misa"]
[Black "Nenezic, Marko"]
[Result "0-1"]
[ECO "B22"]
[WhiteElo "2454"]
[BlackElo "2522"]
[Annotator "ChessBase"]
[PlyCount "96"]
[EventDate "2019.08.23"]
[EventType "team-tourn"]
[EventCountry "SRB"]
[SourceTitle "playchess.com"]
[Source "ChessBase"]
[SourceQuality "1"]
[TimeControl "40/5400+30:1800+30"]

1. e4 {[%emt 1:30:30]} c5 {[%emt 1:30:30]} 2. c3 {[%emt 0:00:30]} d5 {[%emt 0:00:30]} 3. exd5 {[%emt 0:00:30]} Qxd5 {[%emt 0:00:30]} 4. Nf3 {[%emt 0:00:30]} Nf6 {[%emt 0:00:30]} 5. Na3 {[%emt 0:00:30]} Nc6 {[%emt 0:00:30]} 6. Bc4 {[%emt 0:00:30]} Qd8 {[%emt 0:00:30]} 7. O-O {[%emt 0:00:30]} e6 {[%emt 0:00:30]} 8. Nc2 {[%emt 0:00:30]} a6 {[%emt 0:00:30]} 9. Re1 {[%emt 0:00:30]} b5 {[%emt 0:00:30]} 10. Bf1 {[%emt 0:00:30]} Be7 {[%emt 0:00:30]} 11. d4 {[%emt 0:00:30]} Bb7 {[%emt 0:00:30]} 12. Bg5 {[%emt 0:00:30]} cxd4 {[%emt 0:00:30]} 13. Ncxd4 {[%emt 0:00:30]} Nxd4 {[%emt 0:00:30]} 14. Nxd4 {[%emt 0:00:30]} O-O {[%emt 0:00:30]} 15. a4 {[%emt 0:00:30]} b4 {[%emt 0:00:30]} 16. c4 {[%emt 0:00:30]} Qa5 {[%emt 0:00:30]} 17. Qc1 {[%emt 0:00:30]} Rfd8 {[%emt 0:00:30]} 18. Nb3 {[%emt 0:00:30]} Qf5 {[%emt 0:00:30]} 19. Bf4 {[%emt 0:00:30]} Ne4 {[%emt 0:00:30]} 20. f3 {[%emt 0:00:30]} Nc5 {[%emt 0:00:30]} 21. Nxc5 {[%emt 0:00:30]} Bxc5+ {[%emt 0:00:30]} 22. Be3 {[%emt 0:00:30]} Bd6 {[%emt 0:00:30]} 23. Bf2 {[%emt 0:00:30]} Rac8 {[%emt 0:00:30]} 24. b3 {[%emt 0:00:30]} Qh5 {[%emt 0:00:30]} 25. Bg3 {[%emt 0:00:30]} Bc5+ {[%emt 0:00:30]} 26. Kh1 {[%emt 0:00:30]} Bd4 {[%emt 0:00:30]} 27. Ra2 {[%emt 0:00:30]} Bc3 {[%emt 0:00:30]} 28. Re3 {[%emt 0:00:30]} Rd7 {[%emt 0:00:30]} 29. Be2 {[%emt 0:00:30]} Rcd8 {[%emt 0:00:30]} 30. Rxc3 {[%emt 0:00:30]} bxc3 {[%emt 0:00:30]} 31. Qxc3 {[%emt 0:00:30]} Qf5 {[%emt 0:00:30]} 32. Qe1 {[%emt 0:00:30]} e5 {[%emt 0:00:30]} 33. h3 {[%emt 0:00:30]} e4 {[%emt 0:00:30]} 34. fxe4 {[%emt 0:00:30]} Qxe4 {[%emt 0:00:30]} 35. Qf1 {[%emt 0:00:30]} Qe3 {[%emt 0:00:30]} 36. Kh2 {[%emt 0:00:30]} Qxb3 {[%emt 0:00:30]} 37. Ra1 {[%emt 0:00:30]} Rd2 {[%emt 0:00:30]} 38. Bf4 {[%emt 0:00:30]} Ra2 {[%emt 0:00:30]} 39. Rb1 {[%emt 0:00:30]} Rb2 {[%emt 0:00:30]} 40. Rxb2 {[%emt 0:00:30]} Qxb2 {[%emt 0:00:30]} 41. c5 {[%emt 0:30:30]} Qf6 {[%emt 0:30:30]} 42. Qc1 {[%emt 0:00:30]} h6 {[%emt 0:00:30]} 43. Bg3 {[%emt 0:00:30]} Qe6 {[%emt 0:00:30]} 44. Qb2 {[%emt 0:00:30]} Bc6 {[%emt 0:00:30]} 45. Bxa6 {[%emt 0:00:30]} Bxg2 {[%emt 0:00:30]} 46. Qb6 {[%emt 0:00:30]} Qxh3+ {[%emt 0:00:30]} 47. Kg1 {[%emt 0:00:30]} Rd2 {[%emt 0:00:30]} 48. Qb8+ {[%emt 0:00:30]} Kh7 {[%emt 0:00:30]} 0-1

[Event "SRB-chT Men 1st League 2019"]
[Site "Subotica"]
[Date "2019.08.23"]
[Round "2.9"]
[White "Radovanovic, Mihajlo"]
[Black "Lajthajm, Borko"]
[Result "1-0"]
[ECO "D46"]
[WhiteElo "2496"]
[BlackElo "2414"]
[Annotator "ChessBase"]
[PlyCount "55"]
[EventDate "2019.08.23"]
[EventType "team-tourn"]
[EventCountry "SRB"]
[SourceTitle "playchess.com"]
[Source "ChessBase"]
[SourceQuality "1"]
[TimeControl "40/5400+30:1800+30"]

1. Nf3 {[%emt 0:00:00]} d5 {[%emt 0:00:00]} 2. c4 {[%emt 0:00:00]} c6 {[%emt 0:00:00]} 3. d4 {[%emt 0:00:21]} Nf6 {[%emt 0:00:01]} 4. Nc3 {[%emt 0:00:26]} e6 {[%emt 0:01:44]} 5. e3 {[%emt 0:00:24]} Nbd7 {[%emt 0:00:16]} 6. Qc2 {[%emt 0:00:33]} Bd6 {[%emt 0:00:29]} 7. Bd3 {[%emt 0:00:06]} O-O {[%emt 0:01:12]} 8. O-O {[%emt 0:00:25]} dxc4 {[%emt 0:00:34]} 9. Bxc4 {[%emt 0:00:05]} e5 {[%emt 0:00:19]} 10. Bb3 {[%emt 0:02:09]} Qe7 {[%emt 0:03:18]} 11. h3 {[%emt 0:02:25]} a5 {[%emt 0:04:21]} 12. a3 {[%emt 0:02:47]} Bb8 {[%emt 0:03:29]} 13. Bd2 {[%emt 0:05:41]} Nb6 {[%emt 0:10:46]} 14. dxe5 {[%emt 0:08:58]} Bxe5 {[%emt 0:02:34]} 15. Nxe5 {[%emt 0:01:04]} Qxe5 {[%emt 0:00:06]} 16. f4 {[%emt 0:04:26]} Qc5 {[%emt 0:00:54]} 17. Nd5 {[%emt 0:05:42]} Qxc2 {[%emt 0:05:39]} 18. Nxf6+ {[%emt 0:00:15]} gxf6 {[%emt 0:00:09]} 19. Bxc2 {[%emt 0:00:05]} Nc4 {[%emt 0:01:18]} 20. Bc3 {[%emt 0:15:57]} Re8 {[%emt 0:02:50]} 21. Rae1 {[%emt 0:16:42]} Rxe3 {[%emt 0:08:25]} 22. f5 {[%emt 0:01:44]} Kg7 {[%emt 0:05:35]} 23. Bb3 {[%emt 0:04:28]} Rxc3 {[%emt 0:30:05]} 24. bxc3 {[%emt 0:00:10]} Nd2 {[%emt 0:00:04]} 25. Rf4 {[%emt 0:00:52]} Nxb3 {[%emt 0:00:34]} 26. Re8 {[%emt 0:00:44]} b5 {[%emt 0:05:41]} 27. Rg4+ {[%emt 0:00:18]} Kh6 {[%emt 0:00:10]} 28. Reg8 {[%emt 0:00:14]} 1-0

[Event "SRB-chT Men 1st League 2019"]
[Site "Subotica"]
[Date "2019.08.23"]
[Round "2.10"]
[White "Arsovic, Zoran"]
[Black "Vuckovic, Bojan"]
[Result "1/2-1/2"]
[ECO "A16"]
[WhiteElo "2370"]
[BlackElo "2581"]
[Annotator "ChessBase"]
[PlyCount "42"]
[EventDate "2019.08.23"]
[EventType "team-tourn"]
[EventCountry "SRB"]
[SourceTitle "playchess.com"]
[Source "ChessBase"]
[SourceQuality "1"]
[TimeControl "40/5400+30:1800+30"]

1. Nf3 {[%emt 0:00:00]} Nf6 {[%emt 0:00:00]} 2. c4 {[%emt 0:00:17]} g6 {[%emt 0:00:01]} 3. Nc3 {[%emt 0:00:32]} d5 {[%emt 0:00:21]} 4. cxd5 {[%emt 0:00:59]} Nxd5 {[%emt 0:00:09]} 5. d3 {[%emt 0:07:44]} Bg7 {[%emt 0:06:12]} 6. Bd2 {[%emt 0:00:49]} O-O {[%emt 0:00:44]} 7. g3 {[%emt 0:00:47]} e5 {[%emt 0:01:33]} 8. Bg2 {[%emt 0:02:12]} Ne7 {[%emt 0:02:34]} 9. Qc1 {[%emt 0:16:23]} Nbc6 {[%emt 0:25:18]} 10. Bh6 {[%emt 0:03:20]} Bg4 {[%emt 0:06:25]} 11. O-O {[%emt 0:15:22]} Qd7 {[%emt 0:03:15]} 12. Bxg7 {[%emt 0:02:59]} Kxg7 {[%emt 0:00:04]} 13. b4 {[%emt 0:00:21]} Rab8 {[%emt 0:09:28]} 14. Qb2 {[%emt 0:07:23]} f6 {[%emt 0:04:13]} 15. Rac1 {[%emt 0:01:31]} b6 {[%emt 0:04:27]} 16. Ne4 {[%emt 0:03:25]} Bxf3 {[%emt 0:16:13]} 17. Bxf3 {[%emt 0:00:49]} a5 {[%emt 0:00:46]} 18. bxa5 {[%emt 0:17:01]} Nxa5 {[%emt 0:00:12]} 19. e3 {[%emt 0:05:18]} c5 {[%emt 0:01:19]} 20. Rfd1 {[%emt 0:00:15]} Nac6 {[%emt 0:01:41]} 21. Bg2 {[%emt 0:01:09]} Rfd8 {[%emt 0:03:07]} 1/2-1/2

[Event "SRB-chT Men 1st League 2019"]
[Site "Subotica"]
[Date "2019.08.23"]
[Round "2.11"]
[White "Roganovic, Milos"]
[Black "Radlovacki, Jovan"]
[Result "0-1"]
[ECO "B12"]
[WhiteElo "2505"]
[BlackElo "2265"]
[Annotator "ChessBase"]
[PlyCount "46"]
[EventDate "2019.08.23"]
[EventType "team-tourn"]
[EventCountry "SRB"]
[SourceTitle "playchess.com"]
[Source "ChessBase"]
[SourceQuality "1"]
[TimeControl "40/5400+30:1800+30"]

1. e4 {[%emt 0:00:00]} c6 {[%emt 0:00:00]} 2. d4 {[%emt 0:00:00]} d5 {[%emt 0:00:00]} 3. e5 {[%emt 0:00:51]} Bf5 {[%emt 0:00:00]} 4. Nf3 {[%emt 0:00:33]} e6 {[%emt 0:00:02]} 5. Be2 {[%emt 0:00:09]} Ne7 {[%emt 0:10:07]} 6. O-O {[%emt 0:00:51]} h6 {[%emt 0:00:49]} 7. a4 {[%emt 0:04:03]} g5 {[%emt 0:10:43]} 8. Ne1 {[%emt 0:03:46]} c5 {[%emt 0:00:30]} 9. dxc5 {[%emt 0:13:50]} Nd7 {[%emt 0:03:59]} 10. Nd3 {[%emt 0:00:33]} Nc6 {[%emt 0:00:17]} 11. f4 {[%emt 0:02:09]} Nxc5 {[%emt 0:01:02]} 12. Nd2 {[%emt 0:02:04]} Ne4 {[%emt 0:46:31]} 13. Kh1 {[%emt 0:13:18]} Qc7 {[%emt 0:03:34]} 14. Nxe4 {[%emt 0:02:11]} dxe4 {[%emt 0:00:37]} 15. Nf2 {[%emt 0:00:08]} h5 {[%emt 0:05:19]} 16. c3 {[%emt 0:13:25]} Rd8 {[%emt 0:05:34]} 17. Qe1 {[%emt 0:02:04]} gxf4 {[%emt 0:00:23]} 18. Bxf4 {[%emt 0:01:07]} Bh6 {[%emt 0:01:28]} 19. Bg3 {[%emt 0:02:35]} Bd2 {[%emt 0:00:28]} 20. Qb1 {[%emt 0:01:51]} h4 {[%emt 0:00:13]} 21. Nxe4 {[%emt 0:00:44]} hxg3 {[%emt 0:00:19]} 22. h3 {[%emt 0:01:02]} Qxe5 {[%emt 0:00:11]} 23. Bf3 {[%emt 0:00:12]} Rh4 {[%emt 0:00:21]} 0-1

[Event "SRB-chT Men 1st League 2019"]
[Site "Subotica"]
[Date "2019.08.23"]
[Round "2.12"]
[White "Sredojevic, Ivan"]
[Black "Zajic, Milan"]
[Result "1/2-1/2"]
[ECO "A22"]
[WhiteElo "2232"]
[BlackElo "2497"]
[Annotator "ChessBase"]
[PlyCount "116"]
[EventDate "2019.08.23"]
[EventType "team-tourn"]
[EventCountry "SRB"]
[SourceTitle "playchess.com"]
[Source "ChessBase"]
[SourceQuality "1"]
[TimeControl "40/5400+30:1800+30"]

1. c4 {[%emt 0:00:00]} e5 {[%emt 0:00:09]} 2. e3 {[%emt 0:00:11]} Nf6 {[%emt 0:00:56]} 3. Nc3 {[%emt 0:00:06]} Bb4 {[%emt 0:01:20]} 4. Nge2 {[%emt 0:00:08]} O-O {[%emt 0:02:47]} 5. a3 {[%emt 0:00:05]} Bxc3 {[%emt 0:02:49]} 6. Nxc3 {[%emt 0:00:07]} d5 {[%emt 0:03:51]} 7. cxd5 {[%emt 0:00:32]} Nxd5 {[%emt 0:00:03]} 8. Qc2 {[%emt 0:00:44]} Nc6 {[%emt 0:01:39]} 9. Be2 {[%emt 0:07:15]} Re8 {[%emt 0:04:05]} 10. O-O {[%emt 0:06:43]} Nxc3 {[%emt 0:02:36]} 11. Qxc3 {[%emt 0:00:11]} Qg5 {[%emt 0:03:43]} 12. f4 {[%emt 0:14:29]} Qg6 {[%emt 0:03:43]} 13. fxe5 {[%emt 0:13:38]} Nxe5 {[%emt 0:20:50]} 14. b4 {[%emt 0:18:11]} Bf5 {[%emt 0:12:53]} 15. Bb2 {[%emt 0:02:28]} Rad8 {[%emt 0:01:56]} 16. Rf2 {[%emt 0:04:49]} c6 {[%emt 0:09:17]} 17. Raf1 {[%emt 0:06:03]} Be4 {[%emt 0:01:16]} 18. Qc5 {[%emt 0:08:04]} b6 {[%emt 0:08:59]} 19. Qc1 {[%emt 0:01:56]} Nd3 {[%emt 0:02:06]} 20. Bxd3 {[%emt 0:00:06]} Rxd3 {[%emt 0:00:12]} 21. Bd4 {[%emt 0:04:02]} Bd5 {[%emt 0:05:45]} 22. Bc3 {[%emt 0:01:39]} h5 {[%emt 0:01:42]} 23. Qe1 {[%emt 0:02:39]} Be4 {[%emt 0:05:23]} 24. Qe2 {[%emt 0:03:33]} Rd7 {[%emt 0:00:30]} 25. Rc1 {[%emt 0:00:13]} Rd5 {[%emt 0:01:21]} 26. h4 {[%emt 0:02:56]} Bd3 {[%emt 0:00:42]} 27. Qe1 {[%emt 0:00:14]} Be4 {[%emt 0:01:51]} 28. Qe2 {[%emt 0:00:13]} Bd3 {[%emt 0:00:27]} 29. Qe1 {[%emt 0:00:04]} Re4 {[%emt 0:00:16]} 30. Rf4 {[%emt 0:01:21]} Rxf4 {[%emt 0:00:59]} 31. exf4 {[%emt 0:00:04]} Be4 {[%emt 0:00:13]} 32. Qf2 {[%emt 0:00:47]} Rd3 {[%emt 0:00:48]} 33. Kh2 {[%emt 0:00:07]} Qg4 {[%emt 0:00:35]} 34. Re1 {[%emt 0:00:28]} Bxg2 {[%emt 0:00:27]} 35. Re3 {[%emt 0:00:32]} Rxe3 {[%emt 0:00:35]} 36. Qxe3 {[%emt 0:00:03]} Bf3 {[%emt 0:00:36]} 37. Qf2 {[%emt 0:00:04]} Be4 {[%emt 0:00:37]} 38. Qg3 {[%emt 0:02:03]} Qe2+ {[%emt 0:00:09]} 39. Kg1 {[%emt 0:00:05]} f6 {[%emt 0:00:40]} 40. Bxf6 {[%emt 0:00:00]} Qd1+ {[%emt 0:00:00]} 41. Kf2 {[%emt 0:01:17]} Qxd2+ {[%emt 0:00:36]} 42. Kg1 {[%emt 0:00:05]} Qd1+ {[%emt 0:12:04]} 43. Kf2 {[%emt 0:00:06]} Qc2+ {[%emt 0:00:02]} 44. Kg1 {[%emt 0:00:22]} Bg6 {[%emt 0:01:21]} 45. Be5 {[%emt 0:02:03]} Qc1+ {[%emt 0:05:58]} 46. Kf2 {[%emt 0:00:55]} Kh7 {[%emt 0:01:14]} 47. Qc3 {[%emt 0:02:23]} Qh1 {[%emt 0:00:28]} 48. Qg3 {[%emt 0:00:15]} Qe4 {[%emt 0:01:19]} 49. Qc3 {[%emt 0:08:40]} Bf5 {[%emt 0:02:12]} 50. Qf3 {[%emt 0:01:28]} Qxf3+ {[%emt 0:03:43]} 51. Kxf3 {[%emt 0:00:06]} c5 {[%emt 0:00:09]} 52. bxc5 {[%emt 0:05:03]} bxc5 {[%emt 0:00:02]} 53. Ke3 {[%emt 0:00:11]} Kg6 {[%emt 0:00:28]} 54. Bd6 {[%emt 0:00:12]} c4 {[%emt 0:00:05]} 55. Kd4 {[%emt 0:00:05]} Be6 {[%emt 0:00:44]} 56. Be7 {[%emt 0:01:11]} Kf5 {[%emt 0:00:14]} 57. Bg5 {[%emt 0:00:05]} Kg4 {[%emt 0:00:10]} 58. Kc3 {[%emt 0:00:06]} Kf3 {[%emt 0:00:07]} 1/2-1/2

[Event "SRB-chT Men 1st League 2019"]
[Site "Subotica"]
[Date "2019.08.24"]
[Round "3.3"]
[White "Savic, Miodrag R"]
[Black "Miladinovic, Igor"]
[Result "1-0"]
[ECO "B13"]
[WhiteElo "2472"]
[BlackElo "2532"]
[Annotator "ChessBase"]
[PlyCount "105"]
[EventDate "2019.08.23"]
[EventType "team-tourn"]
[EventCountry "SRB"]
[SourceTitle "playchess.com"]
[Source "ChessBase"]
[SourceQuality "1"]
[TimeControl "40/5400+30:1800+30"]

1. e4 {[%emt 0:00:00]} c6 {[%emt 0:02:19]} 2. d4 {[%emt 0:01:26]} d5 {[%emt 0:00:11]} 3. exd5 {[%emt 0:02:13]} cxd5 {[%emt 0:00:43]} 4. Bd3 {[%emt 0:00:12]} Nc6 {[%emt 0:00:10]} 5. c3 {[%emt 0:00:08]} Nf6 {[%emt 0:00:49]} 6. Ne2 {[%emt 0:00:38]} g6 {[%emt 0:00:31]} 7. O-O {[%emt 0:02:29]} Bg7 {[%emt 0:00:10]} 8. Re1 {[%emt 0:04:06]} O-O {[%emt 0:00:10]} 9. Ng3 {[%emt 0:00:56]} Qd6 {[%emt 0:05:37]} 10. Na3 {[%emt 0:12:32]} Bg4 {[%emt 0:02:22]} 11. Qb3 {[%emt 0:06:38]} a6 {[%emt 0:00:19]} 12. h3 {[%emt 0:01:18]} Bd7 {[%emt 0:00:47]} 13. Qb6 {[%emt 0:04:15]} Rfe8 {[%emt 0:04:01]} 14. Nc2 {[%emt 0:01:35]} Bf8 {[%emt 0:14:27]} 15. Bg5 {[%emt 0:05:41]} Be6 {[%emt 0:04:36]} 16. a4 {[%emt 0:14:45]} Nd7 {[%emt 0:03:29]} 17. Qb3 {[%emt 0:00:03]} f6 {[%emt 0:00:14]} 18. Bf4 {[%emt 0:02:22]} Na5 {[%emt 0:06:47]} 19. Qa2 {[%emt 0:15:14]} Qb6 {[%emt 0:03:08]} 20. b4 {[%emt 0:06:52]} Nc4 {[%emt 0:00:24]} 21. a5 {[%emt 0:00:36]} Qc6 {[%emt 0:00:10]} 22. b5 {[%emt 0:00:34]} axb5 {[%emt 0:00:39]} 23. Nb4 {[%emt 0:00:52]} Qc8 {[%emt 0:00:10]} 24. Bxc4 {[%emt 0:01:16]} dxc4 {[%emt 0:03:18]} 25. Rxe6 {[%emt 0:00:02]} Nc5 {[%emt 0:00:35]} 26. Re2 {[%emt 0:06:05]} Nb3 {[%emt 0:00:24]} 27. Rae1 {[%emt 0:00:21]} g5 {[%emt 0:14:10]} 28. Be3 {[%emt 0:01:08]} Rxa5 {[%emt 0:03:03]} 29. Qc2 {[%emt 0:00:20]} Qd7 {[%emt 0:00:07]} 30. Qe4 {[%emt 0:03:53]} e6 {[%emt 0:02:39]} 31. Qf3 {[%emt 0:02:37]} Qf7 {[%emt 0:08:03]} 32. Ne4 {[%emt 0:01:18]} Kg7 {[%emt 0:01:01]} 33. h4 {[%emt 0:00:32]} h6 {[%emt 0:00:29]} 34. hxg5 {[%emt 0:00:09]} hxg5 {[%emt 0:00:18]} 35. Qg3 {[%emt 0:01:18]} Qg6 {[%emt 0:00:26]} 36. Nd6 {[%emt 0:02:07]} Re7 {[%emt 0:00:41]} 37. Nc8 {[%emt 0:00:53]} Rf7 {[%emt 0:00:41]} 38. Qb8 {[%emt 0:00:42]} Ra1 {[%emt 0:05:56]} 39. Nd6 {[%emt 0:00:24]} Rd7 {[%emt 0:01:00]} 40. Ne8+ {[%emt 0:00:00]} Kg8 {[%emt 0:00:00]} 41. Nc7 {[%emt 0:08:51]} Qf7 {[%emt 0:07:27]} 42. Rxa1 {[%emt 0:02:36]} Nxa1 {[%emt 0:01:50]} 43. d5 {[%emt 0:02:08]} exd5 {[%emt 0:19:38]} 44. Bc5 {[%emt 0:05:48]} Rxc7 {[%emt 0:00:08]} 45. Bxf8 {[%emt 0:00:15]} Rd7 {[%emt 0:07:24]} 46. Re7 {[%emt 0:01:41]} Rxe7 {[%emt 0:01:17]} 47. Bxe7+ {[%emt 0:00:02]} Kg7 {[%emt 0:01:03]} 48. Qd6 {[%emt 0:00:15]} d4 {[%emt 0:04:36]} 49. Nd5 {[%emt 0:00:26]} b4 {[%emt 0:01:41]} 50. Bxf6+ {[%emt 0:01:02]} Kh7 {[%emt 0:00:04]} 51. Ne7 {[%emt 0:02:52]} Qh5 {[%emt 0:02:20]} 52. Qxd4 {[%emt 0:00:12]} Qe2 {[%emt 0:00:02]} 53. Qd8 {[%emt 0:01:41]} 1-0